bitfinex/quotes_SOLUSD_20241223
["timestamp","ask_amount","ask_price","bid_price","bid_amount"]
[1734963180927,1.01856663,184.11,184.02,20.43949001]
[1734963181134,1.01856663,184.11,184.04,20.43949001]
[1734963181438,3.0118,184.12,184.08,20.43949001]
[1734963181905,0.12549,184.15,184.07,20.43949001]
[1734963182105,0.12549,184.15,184.08,20.43949001]
[1734963182731,2.37603421,184.16,184.08,20.43949001]
[1734963182906,1.01834411,184.15,184.07,20.43949001]
[1734963183108,1.3575,184.16,184.07,20.43949001]
[1734963183805,21.3575,184.16,184.07,20.43949001]
[1734963184408,1.14376664,184.15,184.07,20.43949001]
[1734963184802,1.14376664,184.15,184.05,20.43949001]
[1734963185234,0.12549,184.13,184.03,20.43949001]
[1734963185436,1.14409061,184.13,184.03,20.43949001]
[1734963185608,0.12549,184.11,184.03,20.43949001]
[1734963185941,0.12549,184.11,184.01,20.43949001]
[1734963185942,0.12549,184.08,184.01,20.43949001]
[1734963186118,20.0,184.09,184.01,20.43949001]
[1734963186740,1.14414478,184.08,184.01,20.43949001]
[1734963186914,1.14414478,184.08,183.99,20.43949001]
[1734963187235,1.01865478,184.08,183.99,20.43949001]
[1734963187735,21.3581,184.09,183.99,20.43949001]
[1734963187942,1.01870458,184.08,183.99,20.43949001]
[1734963189552,1.01870458,184.08,183.96,20.43949001]
[1734963189722,1.01870458,184.08,184.01,20.43949001]
[1734963190133,1.01870458,184.08,184.0,12.77537621]
[1734963190535,21.3581,184.09,184.0,12.77537621]
[1734963190927,1.3581,184.09,184.02,12.77537621]
[1734963191120,10.8419,184.12,184.04,12.77537621]
[1734963191533,1.01851344,184.11,184.02,12.77537621]
[1734963192744,1.3579,184.1,184.02,12.77537621]
[1734963192957,21.1440666,184.09,183.95,11.72695035]
[1734963193167,3.049,184.04,183.94,12.77537621]
[1734963193327,7.44710142,184.03,183.94,12.77537621]
[1734963193728,0.12549,184.02,183.94,12.77537621]
[1734963193927,0.12549,184.02,183.92,12.77537621]
[1734963194223,0.12549,183.99,183.89,12.77537621]
[1734963194429,1.14474057,183.99,183.89,12.77537621]
[1734963194730,2.50354057,183.99,183.89,12.77537621]
[1734963194931,1.3588,183.99,183.91,12.77537621]
[1734963195133,1.3588,183.99,183.93,12.77537621]
[1734963196228,1.3588,183.99,183.93,20.45620673]
[1734963197055,1.01924413,183.98,183.91,20.45620673]
[1734963199374,2.37821397,183.97,183.84,23.776884]
[1734963199585,2.37821397,183.97,183.9,20.45620673]
[1734963200169,2.37821397,183.97,183.91,20.45620673]
[1734963200962,2.37821397,183.97,183.9,20.45620673]
[1734963202281,0.12549,183.94,183.78,8.29446135]
[1734963202447,20.0,183.92,183.83,20.45620673]
[1734963202644,1.01966888,183.91,183.83,20.45620673]
[1734963202955,1.01966888,183.91,183.77,21.89836135]
[1734963202956,0.12549,183.9,183.82,20.45620673]
[1734963203155,0.12549,183.9,183.81,20.45620673]
[1734963203352,6.0413,184.0,183.88,20.45620673]
[1734963203555,8.9229,184.0,183.97,20.45620673]
[1734963203959,8.29446135,184.03,183.99,20.45620673]
[1734963204358,8.9229,184.04,183.99,20.45620673]
[1734963204564,1.3581,184.08,184.0,20.45620673]
[1734963204764,0.12549,184.06,183.98,20.45620673]
[1734963205143,1.01888091,184.07,183.98,20.45620673]
[1734963205976,1.48369,184.06,184.0,20.45620673]
[1734963206575,1.3582,184.06,184.0,20.45620673]
[1734963206786,10.2808,184.1,184.03,20.45620673]
[1734963206942,1.01853583,184.09,184.04,20.45620673]
[1734963207147,1.01853583,184.09,184.0,20.45620673]
[1734963207373,0.12549,184.08,184.0,20.45620673]
[1734963207674,1.01880397,184.07,183.99,20.45620673]
[1734963207870,0.12549,184.06,183.98,20.45620673]
[1734963208170,0.12549,184.02,183.88,6.4409]
[1734963208359,10.21027685,184.02,183.93,20.45620673]
[1734963209369,10.21027685,184.02,183.94,20.45620673]
[1734963209963,11.56877685,184.02,183.94,20.45620673]
[1734963211153,11.56877685,184.02,183.95,20.45620673]
[1734963213580,11.56877685,184.02,183.94,20.45620673]
[1734963215491,11.56877685,184.02,183.93,20.45620673]
[1734963215661,20.0,183.99,183.92,20.45620673]
[1734963215983,1.01919466,184.05,183.98,20.45620673]
[1734963216282,6.3396,184.06,183.99,12.7765787]
[1734963216466,7.35840956,184.06,183.99,12.7765787]
[1734963216667,2.9182,184.07,184.02,12.7765787]
[1734963216865,7.03284794,184.11,183.97,3.0755]
[1734963217184,0.12549,184.1,184.0,12.7765787]
[1734963217394,0.12549,184.08,183.99,12.7765787]
[1734963218106,0.12549,184.08,184.0,12.7765787]
[1734963218284,1.01874149,184.1,184.01,20.43958813]
[1734963218483,1.3581,184.08,184.02,20.43958813]
[1734963218684,6.0143,184.11,184.04,20.43958813]
[1734963220208,7.03280351,184.11,184.03,20.43958813]
[1734963220710,7.03280351,184.11,184.02,20.43958813]
[1734963220711,20.0,184.08,184.02,20.43958813]
[1734963220874,20.0,184.08,183.97,6.2355]
[1734963220875,20.0,184.08,184.01,20.43958813]
[1734963221076,20.0,184.08,184.03,20.43958813]
[1734963221580,20.0,184.08,184.02,20.43958813]
[1734963221781,20.0,184.08,184.01,20.43958813]
[1734963222508,20.0,184.08,184.0,20.43958813]
[1734963222702,1.01866965,184.07,184.0,20.43958813]
[1734963224013,1.01866965,184.07,183.99,20.43958813]
[1734963224707,1.01866965,184.07,184.0,20.43958813]
[1734963224913,20.0,184.08,184.03,20.43958813]
[1734963225108,20.0,184.08,184.04,20.43958813]
[1734963225810,20.0,184.08,184.03,20.43958813]
[1734963227291,7.3722,184.11,184.03,20.43958813]
[1734963228507,7.3722,184.11,184.05,20.43958813]
[1734963229406,8.39070642,184.11,184.03,20.43958813]
[1734963229798,20.0,184.08,184.01,20.43958813]
[1734963230006,1.01871372,184.07,183.99,20.43958813]
[1734963230599,21.01874942,184.08,183.99,20.43958813]
[1734963230999,1.48359,184.07,183.93,9.3665]
[1734963231201,0.12549,184.05,183.97,20.43958813]
[1734963233815,0.12549,184.05,183.98,20.43958813]
[1734963234320,1.0189095,184.14,184.04,20.43958813]
[1734963234623,14.69316135,184.15,184.11,20.43958813]
[1734963234922,8.29446135,184.15,184.11,20.43958813]
[1734963235789,3.97724951,184.17,184.11,20.43958813]
[1734963235992,2.9591,184.17,184.11,20.43958813]
[1734963240116,2.9591,184.17,184.11,12.76003515]
[1734963241753,2.9591,184.17,184.09,12.76003515]
[1734963242665,21.01822525,184.16,184.09,12.76003515]
[1734963243033,20.0,184.16,184.1,12.76003515]
[1734963243363,1.01822307,184.15,184.05,12.76003515]
[1734963243529,0.12549,184.14,184.05,12.76003515]
[1734963243728,20.12549,184.14,184.05,12.76003515]
[1734963243933,1.01842144,184.13,184.05,12.76003515]
[1734963244138,20.0,184.14,184.05,12.76003515]
[1734963244429,20.0,184.14,184.07,12.76003515]
[1734963245059,1.3575,184.15,184.08,12.76003515]
[1734963245834,20.0,184.14,184.08,12.76003515]
[1734963246253,20.0,184.14,184.07,12.76003515]
[1734963246734,6.4968,184.12,183.98,13.5882]
[1734963247055,20.0,184.09,184.01,12.76003515]
[1734963247262,1.01872856,184.08,184.01,12.76003515]
[1734963247581,20.0,184.09,184.01,12.76003515]
[1734963248079,1.01867799,184.08,184.01,12.76003515]
[1734963248742,3.16819,184.07,183.92,9.093]
[1734963249069,1.01884839,184.06,183.97,12.76003515]
[1734963249378,3.0427,184.07,184.01,12.76003515]
[1734963249585,3.0427,184.07,184.03,12.76003515]
[1734963249741,20.0,184.09,184.04,12.76003515]
[1734963250142,20.0,184.09,184.05,12.76003515]
[1734963250578,20.0,184.09,184.04,12.76003515]
[1734963252357,20.0,184.09,184.02,12.76003515]
[1734963252781,1.3581,184.07,184.0,12.76003515]
[1734963253076,2.37694752,184.07,183.99,12.76003515]
[1734963253683,2.37683677,184.07,183.99,12.76003515]
[1734963254359,2.37683677,184.07,184.0,12.76003515]
[1734963254765,0.12549,184.06,183.98,12.76003515]
[1734963254968,1.14434067,184.06,183.99,12.76003515]
[1734963255873,1.14434067,184.06,183.93,23.776884]
[1734963256080,1.3583,184.05,183.98,12.76003515]
[1734963256378,1.3583,184.05,183.99,12.76003515]
[1734963257164,1.01890158,184.04,183.98,12.76003515]
[1734963258674,1.3583,184.05,184.0,12.76003515]
[1734963258876,1.01891631,184.09,184.0,12.76003515]
[1734963259106,35.89254542,184.18,184.03,12.76003515]
[1734963259107,1.01888772,184.1,184.03,12.76003515]
[1734963259317,16.58892271,184.17,184.04,12.76003515]
[1734963259318,4.06128227,184.11,184.04,12.76003515]
[1734963259695,3.0427,184.11,184.05,12.76003515]
[1734963260089,4.06118729,184.11,184.04,12.76003515]
[1734963261722,4.06118729,184.11,184.03,12.76003515]
[1734963262247,0.12549,184.1,184.02,12.76003515]
[1734963262404,0.12549,184.1,184.03,12.76003515]
[1734963264226,4.06135467,184.11,184.03,12.76003515]
[1734963264430,4.06121657,184.11,184.03,12.76003515]
[1734963265424,0.12549,184.1,184.03,12.76003515]
[1734963265613,21.01869935,184.09,184.01,12.76003515]
[1734963265812,20.0,184.08,184.01,12.76003515]
[1734963266234,1.14421595,184.07,184.01,12.76003515]
[1734963266734,1.01872595,184.07,183.99,12.76003515]
[1734963267604,1.01881818,184.06,183.99,12.76003515]
[1734963268638,1.14432117,184.07,183.99,12.76003515]
[1734963271241,1.14432117,184.07,183.98,12.76003515]
[1734963271537,1.14432117,184.07,183.99,12.76003515]
[1734963271738,1.14432117,184.07,183.98,12.76003515]
[1734963272540,1.14432117,184.07,183.99,12.76003515]
[1734963273773,1.14432117,184.07,183.98,12.76003515]
[1734963274365,1.14432117,184.07,183.99,12.76003515]
[1734963275159,3.0427,184.11,183.94,23.776884]
[1734963275160,5.41928288,184.11,184.04,12.76003515]
[1734963275344,3.0427,184.11,184.05,12.76003515]
[1734963275659,3.0427,184.11,184.06,12.76003515]
[1734963276757,3.0427,184.11,184.05,12.76003515]
[1734963277571,20.0,184.09,184.02,12.76003515]
[1734963278267,20.0,184.09,184.03,12.76003515]
[1734963278950,20.0,184.09,184.02,12.76003515]
[1734963280666,20.0,184.09,184.01,12.76003515]
[1734963283543,19.21457899,184.09,184.01,12.76003515]
[1734963290095,1.01857964,184.08,184.0,12.76003515]
[1734963290575,2.37667964,184.08,183.99,12.76003515]
[1734963290896,22.37667964,184.08,183.98,12.76003515]
[1734963291080,22.37667964,184.08,183.99,12.76003515]
[1734963292580,22.37667964,184.08,183.97,12.76003515]
[1734963292760,22.37667964,184.08,183.98,12.76003515]
[1734963292970,1.3582,184.06,183.94,23.776884]
[1734963293191,20.0,184.04,183.96,12.76003515]
[1734963294206,1.01894378,184.03,183.96,12.76003515]
[1734963294570,20.0,184.04,183.96,12.76003515]
[1734963294768,1.01897098,184.03,183.96,12.76003515]
[1734963295587,0.12549,184.02,183.93,20.0]
[1734963296962,20.12549,184.0,183.9,12.76003515]
[1734963297172,1.01929427,183.99,183.89,12.76003515]
[1734963297494,0.12549,183.98,183.88,12.76003515]
[1734963297705,23.902374,183.98,183.86,31.18214759]
[1734963297866,22.9776,183.95,183.86,12.76003515]
[1734963298376,22.9776,183.95,183.87,12.76003515]
[1734963299289,1.01942227,183.94,183.87,12.76003515]
[1734963299592,1.01942227,183.94,183.86,12.76003515]
[1734963299899,29.3795,183.95,183.86,12.76003515]
[1734963300108,6.3677,184.0,183.92,12.76003515]
[1734963300266,9.4682,184.0,183.97,12.76003515]
[1734963300466,3.1005,184.0,183.97,12.76003515]
[1734963300663,8.29446135,184.04,183.97,12.76003515]
[1734963300857,8.29446135,184.04,183.94,12.76003515]
[1734963301089,1.01882781,184.03,183.93,12.76003515]
[1734963301263,1.01882781,184.03,183.92,12.76003515]
[1734963301699,0.12549,184.02,183.92,12.76003515]
[1734963301907,20.12549,184.02,183.92,12.76003515]
[1734963302107,1.01913521,184.01,183.92,12.76003515]
[1734963302304,0.12549,184.0,183.91,12.76003515]
[1734963303305,0.12549,184.0,183.92,12.76003515]
[1734963303469,23.902374,184.0,183.92,12.76003515]
[1734963303695,1.01918227,183.99,183.92,12.76003515]
[1734963303893,0.12549,184.0,183.92,12.76003515]
[1734963304093,1.01918725,184.01,183.92,12.76003515]
[1734963304920,1.01918725,184.01,183.91,12.76003515]
[1734963305398,1.3587,183.99,183.89,12.76003515]
[1734963305600,1.0192966,183.98,183.89,12.76003515]
[1734963305834,0.12549,183.95,183.81,21.89516135]
[1734963306020,20.0,183.93,183.81,21.0544965]
[1734963306193,1.01966827,183.92,183.81,21.0544965]
[1734963306517,23.902374,183.91,183.76,14.87156135]
[1734963306809,2.8402,183.89,183.8,12.76003515]
[1734963307231,2.8402,183.89,183.81,12.76003515]
[1734963307539,2.8402,183.89,183.8,12.76003515]
[1734963308088,1.01976767,183.88,183.79,32.76003515]
[1734963308488,22.8402,183.89,183.8,12.76003515]
[1734963308739,3.8412823,183.94,183.86,12.76003515]
[1734963308895,2.8215,183.94,183.89,12.76003515]
[1734963310593,2.8215,183.94,183.88,12.76003515]
[1734963310795,1.3588,183.98,183.88,12.76003515]
[1734963311029,1.01940847,183.97,183.89,12.76003515]
[1734963311240,1.01940847,183.97,183.88,12.76003515]
[1734963311399,1.01940847,183.97,183.87,32.76003515]
[1734963313402,1.01940847,183.97,183.9,12.76003515]
[1734963313622,1.01940847,183.97,183.89,12.76003515]
[1734963314137,1.01940847,183.97,183.87,20.0]
[1734963314138,1.01940847,183.97,183.88,12.76003515]
[1734963314336,20.0,183.98,183.91,12.76003515]
[1734963314502,20.0,183.99,183.93,12.76003515]
[1734963315037,20.0,183.99,183.92,12.76003515]
[1734963315206,20.0,183.98,183.91,12.76003515]
[1734963315405,20.0,183.99,183.92,12.76003515]
[1734963315821,20.0,183.98,183.92,12.76003515]
[1734963316018,20.0,183.99,183.91,12.76003515]
[1734963316223,20.0,183.98,183.91,12.76003515]
[1734963316428,2.8986,184.01,183.93,12.76003515]
[1734963316635,2.8986,184.01,183.94,12.76003515]
[1734963318947,2.8986,184.01,183.96,12.76003515]
[1734963319161,9.39893086,184.07,183.98,12.76003515]
[1734963319359,2.9993,184.07,184.0,12.76003515]
[1734963319870,4.01796852,184.07,184.0,12.76003515]
[1734963320070,4.01796852,184.07,183.98,12.76003515]
[1734963320361,0.12549,184.06,183.95,32.76003515]
[1734963320530,0.12549,184.06,183.91,13.71849]
[1734963320531,20.0,184.03,183.94,20.0]
[1734963320734,20.0,184.03,183.95,12.76003515]
[1734963321331,1.01897046,184.02,183.94,20.0]
[1734963321545,20.0,184.03,183.94,32.76003515]
[1734963322758,0.12549,184.04,183.94,32.76003515]
[1734963323067,20.0,184.03,183.94,12.76003515]
[1734963323247,21.01892417,184.03,183.94,12.76003515]
[1734963323452,20.0,184.03,183.94,12.76003515]
[1734963323660,2.9993,184.07,184.0,12.76003515]
[1734963323832,2.9095,184.11,184.04,12.76003515]
[1734963324234,2.9095,184.11,184.05,12.76003515]
[1734963325144,3.92798634,184.11,184.03,12.76003515]
[1734963327588,2.9095,184.11,184.02,12.76003515]
[1734963327788,3.92799592,184.11,184.02,12.76003515]
[1734963328085,2.9095,184.11,184.06,12.76003515]
[1734963328590,10.8603,184.16,184.07,12.76003515]
[1734963329083,10.8603,184.16,184.06,12.76003515]
[1734963329274,20.0,184.13,184.07,12.76003515]
[1734963329982,20.0,184.13,184.06,12.76003515]
[1734963330291,20.0,184.13,184.07,12.76003515]
[1734963330495,9.5028,184.16,184.1,12.76003515]
[1734963330663,9.5028,184.16,184.11,12.76003515]
[1734963331188,9.5028,184.16,184.1,12.76003515]
[1734963331397,9.5028,184.16,184.07,12.76003515]
[1734963331893,1.01827054,184.15,184.07,12.76003515]
[1734963332093,1.01827054,184.15,184.06,12.76003515]
[1734963333083,9.5028,184.16,184.07,12.76003515]
[1734963333295,9.5028,184.16,184.08,12.76003515]
[1734963334496,1.01824809,184.15,184.07,12.76003515]
[1734963334703,2.37584809,184.15,184.05,12.76003515]
[1734963334918,20.0,184.13,184.02,12.76003515]
[1734963335071,1.14403037,184.12,184.01,12.76003515]
[1734963335265,1.14403037,184.12,183.95,13.5905]
[1734963335266,1.01854037,184.12,184.02,12.76003515]
[1734963335465,1.01854037,184.12,184.03,12.76003515]
[1734963336071,1.01854037,184.12,184.02,12.76003515]
[1734963336271,2.37634037,184.12,184.02,20.43490005]
[1734963336602,20.0,184.13,184.06,20.43490005]
[1734963336906,1.01854995,184.15,184.07,20.43490005]
[1734963336907,1.01830778,184.15,184.07,20.43490005]
[1734963337071,1.01830778,184.15,184.06,20.43490005]
[1734963337920,10.8603,184.16,184.06,20.43490005]
[1734963338132,1.01822233,184.15,184.07,20.43490005]
[1734963338429,10.8603,184.16,184.07,20.43490005]
[1734963338592,1.01834385,184.2,184.11,20.43490005]
[1734963338593,1.3572,184.2,184.11,20.43490005]
[1734963338793,9.2602,184.21,184.14,20.43490005]
[1734963339027,9.2602,184.21,184.17,20.43490005]
[1734963339395,9.2602,184.21,184.15,20.43490005]
[1734963339831,6.5408,184.25,184.16,20.43490005]
[1734963340035,6.5408,184.25,184.17,20.43490005]
[1734963341436,6.5408,184.25,184.19,20.43490005]
[1734963341589,0.6753613,184.28,184.24,20.43490005]
[1734963341899,0.6753613,184.28,184.25,20.43490005]
[1734963342102,0.6753613,184.28,184.26,20.43490005]
[1734963342344,0.6753613,184.28,184.27,20.43490005]
[1734963342928,0.6753613,184.28,184.27,44.21178405]
[1734963343133,0.6753613,184.28,184.27,44.33727405]
[1734963343431,0.6753613,184.28,184.27,44.21178405]
[1734963344501,0.6753613,184.28,184.27,20.43490005]
[1734963345066,0.6753613,184.28,184.27,44.21178405]
[1734963345448,0.6753613,184.28,184.27,20.43490005]
[1734963345765,0.6753613,184.28,184.27,44.21178405]
[1734963345943,0.6753613,184.28,184.26,20.0]
[1734963346129,0.6753613,184.28,184.27,20.43490005]
[1734963350986,6.2548,184.43,184.28,0.12549]
[1734963351187,6.2548,184.43,184.36,20.43490005]
[1734963351387,2.0306613,184.46,184.38,20.43490005]
[1734963351388,0.6753613,184.46,184.38,20.43490005]
[1734963351686,1.01660134,184.45,184.35,40.43490005]
[1734963351870,1.01660134,184.45,184.35,20.43490005]
[1734963352388,0.12549,184.44,184.33,20.43490005]
[1734963353673,22.37190134,184.45,184.33,20.43490005]
[1734963354074,23.776884,184.44,184.33,20.43490005]
[1734963354283,1.01699933,184.43,184.33,20.43490005]
[1734963354890,0.12549,184.42,184.31,20.43490005]
[1734963355260,1.3556,184.41,184.31,20.43490005]
[1734963355464,1.01707739,184.4,184.31,20.43490005]
[1734963356199,21.01707739,184.4,184.31,20.43490005]
[1734963356985,0.12549,184.39,184.31,20.43490005]
[1734963357175,9.0441,184.38,184.29,20.43490005]
[1734963357473,1.01708831,184.37,184.29,20.43490005]
[1734963358191,1.01708831,184.37,184.27,20.43490005]
[1734963358593,0.12549,184.36,184.27,20.43490005]
[1734963359886,20.0,184.35,184.25,20.43490005]
[1734963360076,0.12549,184.33,184.23,20.43490005]
[1734963361888,1.3563,184.32,184.23,20.43490005]
[1734963362094,9.0441,184.38,184.25,20.43490005]
[1734963362095,20.0,184.35,184.25,20.43490005]
[1734963362270,1.01736259,184.34,184.25,20.43490005]
[1734963362893,0.12549,184.33,184.25,20.43490005]
[1734963363080,1.01736259,184.34,184.25,20.43490005]
[1734963363297,2.373345,184.37,184.27,20.43490005]
[1734963363501,9.0441,184.38,184.31,20.43490005]
[1734963364716,1.01688667,184.42,184.33,20.43490005]
[1734963364895,1.01676987,184.41,184.33,20.43490005]
[1734963365197,1.01688602,184.4,184.33,20.43490005]
[1734963365396,1.01699416,184.42,184.31,20.43490005]
[1734963365710,0.12549,184.41,184.31,20.43490005]
[1734963366065,1.01699416,184.42,184.33,20.43490005]
[1734963366265,9.0649,184.43,184.33,20.43490005]
[1734963366466,0.6753613,184.46,184.37,20.43490005]
[1734963366996,1.01667851,184.45,184.37,20.43490005]
[1734963367193,0.6753613,184.46,184.37,20.43490005]
[1734963367527,0.6753613,184.46,184.39,20.43490005]
[1734963368195,1.01666257,184.45,184.35,20.43490005]
[1734963368696,0.12549,184.44,184.35,20.43490005]
[1734963369083,21.01666257,184.45,184.35,20.43490005]
[1734963369492,21.01666257,184.45,184.33,20.43490005]
[1734963369493,1.3555,184.43,184.33,20.43490005]
[1734963369795,1.01695505,184.42,184.33,20.43490005]
[1734963371211,20.0,184.45,184.35,20.43490005]
[1734963371415,1.01678483,184.44,184.35,20.43490005]
[1734963372110,1.01678483,184.44,184.29,13.5649]
[1734963372111,0.6753613,184.46,184.37,20.43490005]
[1734963372478,0.6753613,184.46,184.39,20.43490005]
[1734963373824,0.6753613,184.46,184.41,20.43490005]
[1734963374679,0.6753613,184.46,184.35,23.776884]
[1734963374680,0.12549,184.45,184.35,20.43490005]
[1734963374884,1.01676204,184.44,184.35,20.43490005]
[1734963375087,21.3553,184.45,184.35,20.43490005]
[1734963375285,20.0,184.45,184.35,20.43490005]
[1734963375509,20.0,184.45,184.37,20.43490005]
[1734963375922,6.338,184.39,184.25,13.584414]
[1734963376109,1.01710781,184.38,184.28,20.43490005]
[1734963376510,6.338,184.39,184.3,20.43490005]
[1734963376715,1.01692214,184.38,184.3,20.43490005]
[1734963377011,6.338,184.39,184.3,20.43490005]
[1734963377584,1.01695642,184.38,184.3,20.43490005]
[1734963377798,1.01695642,184.38,184.28,20.43490005]
[1734963379800,1.01695642,184.38,184.3,20.43490005]
[1734963380001,1.01704121,184.42,184.34,20.43490005]
[1734963380197,9.6116,184.43,184.36,20.43490005]
[1734963381900,1.01680165,184.42,184.32,20.43490005]
[1734963382317,0.12549,184.41,184.3,20.43490005]
[1734963382625,1.01680165,184.42,184.3,20.43490005]
[1734963384118,20.0,184.4,184.3,20.43490005]
[1734963384318,21.01693468,184.4,184.3,20.43490005]
[1734963384910,20.0,184.4,184.3,20.43490005]
[1734963385222,2.37269237,184.41,184.3,20.43490005]
[1734963385401,1.01682097,184.42,184.32,20.43490005]
[1734963385602,10.6284102,184.43,184.32,20.43490005]
[1734963385902,9.6116,184.43,184.34,20.43490005]
[1734963386102,9.6116,184.43,184.36,20.43490005]
[1734963386531,9.6116,184.43,184.34,20.43490005]
[1734963388634,1.01673364,184.42,184.34,20.43490005]
[1734963388940,1.01680656,184.42,184.32,20.43490005]
[1734963390062,9.6116,184.43,184.32,20.43490005]
[1734963391839,9.6116,184.43,184.34,20.43490005]
[1734963392025,9.6116,184.43,184.36,20.43490005]
[1734963394116,0.6753613,184.46,184.36,20.43490005]
[1734963394324,0.6753613,184.46,184.4,20.43490005]
[1734963395231,0.6753613,184.46,184.38,20.43490005]
[1734963399447,0.6753613,184.46,184.4,20.43490005]
[1734963404150,0.6753613,184.46,184.44,20.43490005]
[1734963405425,0.6753613,184.46,184.4,15.73546643]
[1734963405630,0.6753613,184.46,184.43,40.43490005]
[1734963406043,0.6753613,184.46,184.45,20.43490005]
[1734963407930,0.6753613,184.46,184.45,44.33727405]
[1734963411153,0.6753613,184.46,184.44,20.0]
[1734963411335,0.6753613,184.46,184.45,20.43490005]
[1734963411748,0.6753613,184.46,184.45,20.56039005]
[1734963412647,0.6753613,184.46,184.45,44.33727405]
[1734963412956,0.6753613,184.46,184.45,20.43490005]
[1734963413531,0.6753613,184.46,184.45,20.56039005]
[1734963414344,0.6753613,184.46,184.45,44.33727405]
[1734963414951,0.6753613,184.46,184.45,46.52209978]
[1734963415542,0.6753613,184.46,184.45,20.43490005]
[1734963418242,0.6753613,184.46,184.43,20.43490005]
[1734963418459,0.6753613,184.46,184.45,20.43490005]
[1734963418964,0.6753613,184.46,184.45,44.33727405]
[1734963419366,0.6753613,184.46,184.45,20.43490005]
[1734963424884,0.6753613,184.46,184.41,20.43490005]
[1734963425443,0.6753613,184.46,184.39,20.43490005]
[1734963426172,0.6753613,184.46,184.41,20.43490005]
[1734963426378,0.6753613,184.46,184.38,13.5585]
[1734963426584,0.6753613,184.46,184.43,20.43490005]
[1734963427494,0.6753613,184.46,184.41,40.43490005]
[1734963427790,0.6753613,184.46,184.41,20.43490005]
[1734963428698,0.6753613,184.46,184.45,0.12549]
[1734963428983,6.2354,184.58,184.48,20.0]
[1734963429188,6.2354,184.58,184.49,20.43490005]
[1734963429780,6.2354,184.58,184.47,20.43490005]
[1734963430956,6.2354,184.58,184.49,20.43490005]
[1734963431589,6.2354,184.58,184.51,20.43490005]
[1734963431795,6.2354,184.58,184.49,40.43490005]
[1734963432577,6.2354,184.58,184.49,20.43490005]
[1734963433202,6.2354,184.58,184.47,20.43490005]
[1734963433373,1.01585034,184.57,184.47,20.43490005]
[1734963433879,6.2354,184.58,184.47,20.43490005]
[1734963434208,1.0159388,184.57,184.47,20.43490005]
[1734963434411,6.2354,184.58,184.47,20.43490005]
[1734963434704,1.01595882,184.57,184.47,20.43490005]
[1734963434914,1.01599841,184.57,184.47,20.43490005]
[1734963435214,3.0729,184.56,184.45,20.43490005]
[1734963436004,3.0729,184.56,184.47,20.43490005]
[1734963436705,3.0729,184.56,184.49,20.43490005]
[1734963437416,3.0729,184.56,184.47,20.43490005]
[1734963437710,3.0729,184.56,184.45,20.43490005]
[1734963438283,1.0160199,184.55,184.45,20.43490005]
[1734963439110,1.3547,184.54,184.43,20.43490005]
[1734963439317,1.3547,184.54,184.39,2.955]
[1734963439318,21.01626607,184.53,184.41,20.43490005]
[1734963439478,6.575,184.52,184.41,20.43490005]
[1734963439807,2.9725,184.5,184.41,20.43490005]
[1734963441014,2.9725,184.5,184.35,20.0927]
[1734963441015,2.9725,184.5,184.43,20.43490005]
[1734963443781,2.9725,184.5,184.41,20.43490005]
[1734963444008,3.98875139,184.5,184.41,20.43490005]
[1734963444318,1.355,184.49,184.37,20.43490005]
[1734963444520,2.37146836,184.49,184.37,20.43490005]
[1734963445585,30.485374,184.48,184.35,20.43490005]
[1734963445918,30.485374,184.48,184.27,137.19446135]
[1734963445919,20.0,184.4,184.29,20.43490005]
[1734963446226,1.01698616,184.39,184.28,8.29446135]
[1734963447098,2.8992,184.37,184.28,8.29446135]
[1734963447304,1.01716267,184.36,184.28,8.29446135]
[1734963447516,2.8992,184.37,184.28,20.43490005]
[1734963447825,2.8992,184.37,184.33,20.43490005]
[1734963448035,2.8992,184.37,184.24,0.12549]
[1734963448036,2.8992,184.37,184.32,20.43490005]
[1734963448321,6.583,184.38,184.33,20.43490005]
[1734963448503,9.0528,184.42,184.33,20.43490005]
[1734963449885,9.0528,184.42,184.31,20.43490005]
[1734963449886,2.37238148,184.41,184.31,20.43490005]
[1734963450084,2.37238148,184.41,184.29,20.43490005]
[1734963450289,9.0528,184.42,184.32,20.43490005]
[1734963450518,9.0528,184.42,184.33,20.43490005]
[1734963451385,9.0528,184.42,184.31,20.43490005]
[1734963452519,9.0528,184.42,184.35,20.43490005]
[1734963452726,9.0528,184.42,184.3,13.5646]
[1734963452727,9.0528,184.42,184.37,20.43490005]
[1734963454196,9.0528,184.42,184.35,20.43490005]
[1734963454640,6.1858,184.47,184.36,0.12549]
[1734963454804,3.0728,184.45,184.35,20.43490005]
[1734963455004,3.0728,184.45,184.37,20.43490005]